bitfinex-derivatives/quotes_SOLF0:USTF0_20260217
["timestamp","ask_amount","ask_price","bid_price","bid_amount"]
[1771329685560,8.77699384,85.057,85.021,5.72121899]
[1771329685760,5.74099168,85.058,85.021,5.72121899]
[1771329685960,8.77699384,85.057,85.021,5.72121899]
[1771329686162,5.74099168,85.058,85.021,5.72121899]
[1771329686356,8.77854017,85.057,85.021,5.72121899]
[1771329686666,5.74099168,85.058,85.024,10.591]
[1771329686968,8.77854017,85.057,85.024,10.591]
[1771329687169,5.74099168,85.058,85.024,10.591]
[1771329687465,8.77817773,85.057,85.024,10.591]
[1771329687667,5.74099168,85.058,85.024,10.591]
[1771329687967,8.77847828,85.057,85.024,10.591]
[1771329688169,8.77978889,85.056,85.024,10.591]
[1771329688466,8.77978889,85.055,85.024,10.591]
[1771329688765,5.74099168,85.053,85.01,5.72121899]
[1771329689655,5.74099168,85.049,85.011,10.5926]
[1771329690064,3.62330422,85.04,85.011,10.5926]
[1771329691067,5.74099168,85.039,85.002,5.72121899]
[1771329691468,5.74099168,85.039,85.004,10.5934]
[1771329693064,5.74099168,85.039,85.006,16.31441899]
[1771329693271,3.62330422,85.04,85.007,5.72121899]
[1771329694759,3.62330422,85.04,85.008,10.593]
[1771329696773,3.62330422,85.04,85.008,16.31421899]
[1771329699266,3.62330422,85.04,85.011,5.72121899]
[1771329703978,3.62241605,85.04,85.011,5.72121899]
[1771329704978,3.62241605,85.04,85.006,10.5932]
[1771329704979,9.36340773,85.05,85.012,5.58686797]
[1771329705165,3.62241605,85.05,85.012,5.58686797]
[1771329705573,10.5869,85.057,85.02,5.58686797]
[1771329705770,9.19334615,85.06,85.02,5.58686797]
[1771329705972,8.76209815,85.059,85.02,5.58686797]
[1771329706172,8.76209815,85.058,85.02,5.58686797]
[1771329706372,8.76209815,85.057,85.02,5.58686797]
[1771329706572,3.62241605,85.06,85.02,5.58686797]
[1771329706772,8.76209815,85.059,85.02,5.58686797]
[1771329706978,8.76209815,85.058,85.02,5.58686797]
[1771329707276,5.5709301,85.049,85.001,5.58686797]
[1771329707678,3.62241605,85.04,85.001,5.58686797]
[1771329708672,3.62241605,85.04,85.008,10.593]
[1771329709878,3.62241605,85.04,85.011,5.58686797]
[1771329710376,3.62241605,85.04,85.013,10.5923]
[1771329710581,3.62241605,85.04,85.013,16.17916797]
[1771329710778,5.5709301,85.049,85.014,5.58686797]
[1771329715874,5.5709301,85.049,85.015,10.5921]
[1771329716078,3.62241605,85.05,85.016,5.77752138]
[1771329717782,3.62241605,85.05,85.018,5.77752138]
[1771329718187,3.62241605,85.07,85.018,5.77752138]
[1771329718484,3.62241605,85.07,85.031,5.77752138]
[1771329719579,5.6333611,85.069,85.031,5.77752138]
[1771329719774,5.6333611,85.069,85.034,10.5897]
[1771329720578,3.62241605,85.06,85.034,10.5897]
[1771329721381,3.62241605,85.06,85.034,16.36722138]
[1771329721882,5.6333611,85.069,85.034,16.36722138]
[1771329722690,3.62241605,85.06,85.034,16.36722138]
[1771329723281,5.6333611,85.059,85.023,10.5911]
[1771329723483,5.6333611,85.059,85.024,5.77752138]
[1771329724691,5.6333611,85.059,85.028,5.77752138]
[1771329725387,3.62241605,85.06,85.028,5.77752138]
[1771329725587,3.62241605,85.06,85.031,5.77752138]
[1771329725784,9.25577715,85.07,85.031,5.77752138]
[1771329725983,8.79101699,85.069,85.031,5.77752138]
[1771329726185,10.5855,85.069,85.033,5.77752138]
[1771329726389,3.62241605,85.06,85.033,5.77752138]
[1771329727088,3.62241605,85.06,85.019,5.77752138]
[1771329727889,5.6333611,85.059,85.0,3.62241605]
[1771329728094,9.25577715,85.04,85.007,5.77752138]
[1771329728299,3.62241605,85.03,85.007,5.77752138]
[1771329728990,9.25577715,85.04,85.008,10.593]
[1771329729392,9.25577715,85.04,85.009,5.77752138]
[1771329729393,3.62241605,85.04,85.009,5.77752138]
[1771329731193,3.62241605,85.03,85.001,10.5939]
[1771329731806,3.62241605,85.03,85.001,16.37142138]
[1771329732298,5.6333611,85.039,85.004,5.77752138]
[1771329732900,5.6333611,85.039,85.006,10.5932]
[1771329733094,5.6333611,85.039,85.006,16.37072138]
[1771329734302,3.62241605,85.03,84.995,5.8217714]
[1771329735802,5.41953553,85.037,84.96,75.08]
[1771329735803,3.62241605,85.01,84.986,10.5957]
[1771329736790,5.41953553,85.019,84.986,10.5957]
[1771329737500,3.62241605,85.03,84.993,10.5948]
[1771329737699,8.78691184,85.029,84.993,10.5948]
[1771329737898,3.62241605,85.03,84.993,10.5948]
[1771329738101,8.78625336,85.029,84.993,10.5948]
[1771329738404,3.62241605,85.03,84.993,10.5948]
[1771329738593,8.78437107,85.029,84.993,10.5948]
[1771329738793,3.62241605,85.03,85.0,5.8217714]
[1771329738997,5.41953553,85.044,85.0,5.8217714]
[1771329739808,3.62241605,85.05,85.011,5.8217714]
[1771329740714,3.62241605,85.05,85.017,10.5918]
[1771329742413,3.62241605,85.05,85.017,16.4135714]
[1771329742610,3.62241605,85.06,85.02,5.8217714]
[1771329742814,5.41953553,85.068,85.02,5.8217714]
[1771329743819,5.41953553,85.068,85.028,10.5905]
[1771329744119,5.41953553,85.068,85.029,5.8217714]
[1771329745313,3.62241605,85.07,85.029,5.8217714]
[1771329745713,1.605e-05,85.07,85.034,5.8217714]
[1771329745912,5.41953553,85.095,85.041,5.8217714]
[1771329746822,5.41953553,85.095,85.059,10.5866]
[1771329747620,5.41953553,85.109,85.063,5.8217714]
[1771329747823,3.62241605,85.11,85.063,5.8217714]
[1771329748723,3.62241605,85.11,85.065,5.8217714]
[1771329749826,3.62241605,85.11,85.067,5.8217714]
[1771329750014,10.5798,85.115,85.067,5.8217714]
[1771329750417,10.5798,85.115,85.011,11.76]
[1771329750418,9.04195158,85.12,85.074,5.8217714]
[1771329751829,9.04195158,85.12,85.076,5.8217714]
[1771329752726,12.36334728,85.14,85.086,5.8217714]
[1771329752926,9.04195158,85.14,85.086,5.8217714]
[1771329753324,5.41953553,85.139,85.086,5.8217714]
[1771329753827,5.41953553,85.139,85.089,5.8217714]
[1771329754725,5.41953553,85.137,85.091,10.5826]
[1771329754930,3.62241605,85.13,85.091,10.5826]
[1771329756332,3.62241605,85.13,85.094,10.5823]
[1771329756529,3.62241605,85.13,85.095,5.8217714]
[1771329756725,5.41953553,85.137,85.095,5.8217714]
[1771329757727,3.62241605,85.13,85.095,5.8217714]
[1771329758034,5.41953553,85.129,85.086,10.5832]
[1771329758234,5.41953553,85.129,85.087,5.8217714]
[1771329759836,5.41953553,85.129,85.089,10.5829]
[1771329762933,3.62241605,85.13,85.096,5.8217714]
[1771329763139,3.62241605,85.14,85.096,5.8217714]
[1771329763337,5.41953553,85.141,85.096,5.8217714]
[1771329763539,3.62241605,85.15,85.096,5.8217714]
[1771329763735,10.5755,85.149,85.107,10.5806]
[1771329764040,3.62241605,85.15,85.108,5.8217714]
[1771329764233,5.41953553,85.149,85.108,5.8217714]
[1771329765739,10.5756,85.148,85.109,10.5804]
[1771329765943,10.5756,85.148,85.109,16.19260553]
[1771329766331,3.61333188,85.15,85.113,10.5798]
[1771329766532,10.5746,85.156,85.114,5.61220553]
[1771329766739,3.61333188,85.17,85.114,5.61220553]
[1771329767839,10.5731,85.169,85.127,5.61220553]
[1771329768237,5.40363366,85.172,85.135,10.5772]
[1771329768634,3.61333188,85.17,85.127,5.61220553]
[1771329768839,8.68350087,85.191,85.09,74.02]
[1771329768840,5.40363366,85.159,85.118,16.19140553]
[1771329769639,5.40363366,85.159,85.121,10.5789]
[1771329771141,5.40363366,85.159,85.083,74.02]
[1771329771142,5.64878293,85.149,85.101,5.84880575]
[1771329771647,3.61333188,85.15,85.101,5.84880575]
[1771329772146,3.61333188,85.16,85.122,10.5788]
[1771329772346,10.5736,85.165,85.123,5.84880575]
[1771329772749,3.61333188,85.17,85.132,10.5775]
[1771329772949,3.61333188,85.17,85.133,5.84880575]
[1771329773546,79.66878293,85.174,85.133,5.84880575]
[1771329773751,3.61333188,85.17,85.133,5.84880575]
[1771329776151,3.61333188,85.16,85.121,10.5788]
[1771329776551,3.61333188,85.16,85.1,3.61333188]
[1771329776552,3.61333188,85.16,85.122,5.84880575]
[1771329776747,5.64878293,85.165,85.122,5.84880575]
[1771329777345,10.5738,85.163,85.124,10.5785]
[1771329779846,10.5738,85.163,85.127,5.84880575]
[1771329781650,3.61333188,85.17,85.086,74.0]
[1771329781651,3.61333188,85.17,85.133,5.84880575]
[1771329781952,3.61333188,85.18,85.133,5.84880575]
[1771329782155,3.61333188,85.19,85.133,5.84880575]
[1771329783754,10.571,85.186,85.145,5.84880575]
[1771329785045,14.18503188,85.18,85.145,5.84880575]
[1771329785249,19.83381481,85.18,85.145,5.84880575]
[1771329785748,5.64878293,85.179,85.137,10.5769]
[1771329786149,5.64878293,85.179,85.137,16.42570575]
[1771329786442,5.64878293,85.177,85.137,5.84880575]
[1771329786652,5.64878293,85.169,85.129,10.578]
[1771329786849,5.64878293,85.179,85.124,5.84880575]
[1771329787755,10.5722,85.176,85.136,5.84880575]
[1771329789660,14.18623188,85.17,85.136,5.84880575]
[1771329790350,5.64878293,85.159,85.121,10.5788]
[1771329790658,5.64878293,85.159,85.121,16.42760575]
[1771329791156,5.64878293,85.159,85.123,10.5787]
[1771329791353,5.64878293,85.159,85.123,16.42750575]
[1771329792051,5.64878293,85.172,85.128,5.84880575]
[1771329792250,5.64878293,85.169,85.128,5.84880575]
[1771329793652,16.22188293,85.169,85.129,10.5779]
[1771329793869,5.64878293,85.169,85.129,5.84880575]
[1771329794159,3.61333188,85.18,85.129,5.84880575]
[1771329795663,3.61333188,85.18,85.144,10.5761]
[1771329796060,5.64878293,85.184,85.145,5.81734482]
[1771329796253,3.61333188,85.19,85.155,5.81734482]
[1771329796661,3.61333188,85.2,85.155,5.81734482]
[1771329797258,10.5693,85.199,85.162,10.5738]
[1771329797458,10.5693,85.199,85.163,5.81734482]
[1771329798867,3.61333188,85.2,85.166,10.5733]
[1771329799469,5.76610031,85.21,85.124,73.98]
[1771329799470,9.37943219,85.21,85.169,5.81734482]
[1771329799662,8.7219228,85.209,85.169,5.81734482]
[1771329799861,5.76610031,85.21,85.169,5.81734482]
[1771329800369,9.37943219,85.21,85.172,5.81734482]
[1771329800863,5.76610031,85.209,85.172,5.81734482]
[1771329801061,5.76610031,85.209,85.173,10.5725]
[1771329803869,5.76610031,85.209,85.175,16.38954482]
[1771329804170,5.76610031,85.209,85.175,5.81734482]
[1771329810472,3.61333188,85.2,85.164,10.5736]
[1771329810874,3.61333188,85.2,85.165,5.81734482]
[1771329811673,3.61333188,85.2,85.169,5.81734482]
[1771329812773,16.33450031,85.207,85.169,5.81734482]
[1771329814070,5.76610031,85.207,85.169,5.81734482]
[1771329814762,10.5689,85.203,85.169,5.81734482]
[1771329815565,10.5689,85.203,85.17,10.5727]
[1771329815967,10.5689,85.203,85.169,5.81734482]
[1771329816366,3.61333188,85.2,85.169,5.81734482]
[1771329816963,10.5693,85.199,85.169,5.81734482]
[1771329817168,16.33540031,85.199,85.163,10.5737]
[1771329817368,5.76610031,85.199,85.163,16.39104482]
[1771329817873,3.61333188,85.21,85.164,5.81734482]
[1771329818675,3.61333188,85.21,85.173,10.5724]
[1771329818871,9.37943219,85.21,85.173,10.5724]
[1771329819264,5.76610031,85.209,85.173,10.5724]
[1771329824078,5.76610031,85.209,85.177,10.572]
[1771329824583,5.77668833,85.22,85.178,5.63618138]
[1771329824875,9.39002021,85.22,85.178,5.63618138]
[1771329825080,21.1233,85.261,85.15,21.1506]
[1771329825081,5.77668833,85.209,85.15,24.76393188]
[1771329825374,5.77668833,85.209,85.173,10.5724]
[1771329825781,5.77668833,85.209,85.179,10.5717]
[1771329826476,73.94,85.217,85.181,16.20768138]
[1771329826681,73.94,85.217,85.182,5.63618138]
[1771329827883,73.94,85.217,85.184,10.5711]
[1771329829283,73.94,85.217,85.184,5.63618138]
[1771329829779,79.71668833,85.217,85.184,5.63618138]
[1771329829981,79.71668833,85.217,85.174,5.63618138]
[1771329829982,3.60718231,85.21,85.174,5.63618138]
[1771329830192,73.94,85.217,85.174,5.63618138]
[1771329830580,73.94,85.217,85.183,10.5712]
[1771329830882,3.60718231,85.21,85.174,5.63618138]
[1771329831281,9.51148161,85.21,85.174,5.63618138]
[1771329831584,5.9042993,85.209,85.174,5.63618138]
[1771329831785,5.9042993,85.209,85.175,10.5722]
[1771329833286,5.9042993,85.209,85.174,5.63618138]
[1771329838897,16.4723993,85.209,85.174,5.63618138]
[1771329841183,10.5691,85.201,85.164,5.58759615]
[1771329841387,10.9566922,85.243,85.164,5.58759615]
[1771329841388,5.9042993,85.199,85.164,5.58759615]
[1771329841594,5.9042993,85.189,85.141,5.58759615]
[1771329841894,5.9042993,85.189,85.16,10.574]
[1771329843492,5.9042993,85.189,85.153,5.58759615]
[1771329843493,5.9042993,85.189,85.153,10.5749]
[1771329843793,3.60718231,85.18,85.153,10.5749]
[1771329845988,5.9042993,85.189,85.153,10.5749]
[1771329846194,5.9042993,85.189,85.154,5.58759615]
[1771329846394,10.57,85.194,85.154,5.58759615]
[1771329848588,16.4742993,85.194,85.154,5.58759615]
[1771329848985,10.5707,85.188,85.154,5.58759615]
[1771329849389,332.6315928,85.326,85.131,5.58759615]
[1771329849390,3.60718231,85.17,85.131,5.58759615]
[1771329849591,5.9042993,85.169,85.131,5.58759615]
[1771329850793,10.572,85.178,85.143,16.16369615]
[1771329851992,5.9042993,85.177,85.143,16.16369615]
[1771329852594,3.60718231,85.17,85.143,16.16369615]
[1771329852991,10.573,85.169,85.131,5.58759615]
[1771329853297,9.51148161,85.16,85.111,5.58759615]
[1771329853493,5.9042993,85.159,85.111,5.58759615]
[1771329853999,10.5755,85.149,85.113,10.5799]
[1771329854501,3.60718231,85.15,85.113,10.5799]
[1771329855203,9.23579543,85.15,85.113,10.5799]
[1771329855403,3.60718231,85.14,85.101,10.5814]
[1771329855702,3.60718231,85.14,85.102,5.34046536]
[1771329855903,5.62861312,85.149,85.102,5.34046536]
[1771329856103,5.62861312,85.149,85.106,5.34046536]
[1771329857703,3.60718231,85.14,85.106,5.34046536]
[1771329858006,3.60718231,85.14,85.113,5.34046536]
[1771329858204,5.62861312,85.149,85.113,5.34046536]
[1771329858401,5.62861312,85.149,85.114,15.92026536]
[1771329859495,3.60718231,85.14,85.114,15.92026536]
[1771329859899,3.60718231,85.14,85.106,10.5807]
[1771329860208,3.60718231,85.14,85.073,73.96]
[1771329860209,3.60718231,85.14,85.107,5.34046536]
[1771329860607,3.60718231,85.14,85.112,15.92046536]
[1771329860907,3.60718231,85.14,85.113,5.34046536]
[1771329861406,5.62861312,85.149,85.113,5.34046536]
[1771329861800,5.62861312,85.149,85.116,10.5795]
[1771329862001,3.60718231,85.15,85.117,5.34046536]
[1771329862305,10.5745,85.157,85.117,5.34046536]
[1771329862506,3.60718231,85.15,85.117,5.34046536]
[1771329865003,3.60718231,85.15,85.118,10.5793]
[1771329865507,3.60718231,85.15,85.117,5.34046536]
[1771329866701,9.23579543,85.15,85.117,5.34046536]
[1771329867310,3.60718231,85.14,85.111,10.5801]
[1771329867910,3.60718231,85.14,85.111,15.92056536]
[1771329868209,5.62861312,85.149,85.111,15.92056536]
[1771329869709,5.62861312,85.149,85.114,10.5798]
[1771329872717,5.62861312,85.149,85.12,10.5791]
[1771329874818,5.62861312,85.149,85.114,10.5798]
[1771329875023,5.62861312,85.149,85.115,5.34046536]
[1771329876717,5.62861312,85.149,85.117,10.5794]
[1771329878718,5.62861312,85.149,85.119,10.5792]
[1771329879516,5.62861312,85.149,85.119,15.91966536]
[1771329882525,5.62861312,85.147,85.111,10.5801]
[1771329884717,5.62861312,85.147,85.115,10.5796]
[1771329885117,5.62861312,85.147,85.116,5.61654339]
[1771329885925,3.60718231,85.15,85.118,5.61654339]
[1771329886224,15.96198787,85.165,85.118,5.61654339]
[1771329886614,5.38838787,85.164,85.118,5.61654339]
[1771329887520,5.38838787,85.161,85.118,5.61654339]
[1771329887821,3.60718231,85.17,85.118,5.61654339]
[1771329888032,5.38838787,85.169,85.118,5.61654339]
[1771329888718,10.5736,85.165,85.126,5.61654339]
[1771329888920,5.38838787,85.164,85.126,5.61654339]
[1771329889115,10.5736,85.165,85.126,5.61654339]
[1771329889116,5.38838787,85.159,85.126,5.61654339]
[1771329890030,5.38838787,85.159,85.118,10.5792]
[1771329891130,5.38838787,85.159,85.123,10.5787]
[1771329895242,5.67919524,85.169,85.128,5.47650809]
[1771329896034,10.5732,85.167,85.128,5.47650809]
[1771329896238,5.67919524,85.166,85.128,5.47650809]
[1771329897832,10.5739,85.163,85.128,5.47650809]
[1771329898233,16.25309524,85.163,85.128,5.47650809]
[1771329898840,5.67919524,85.162,85.128,5.47650809]
[1771329899235,16.25329524,85.16,85.128,5.47650809]
[1771329899430,5.67919524,85.159,85.123,10.5786]
[1771329900233,5.67919524,85.152,85.118,5.47650809]
[1771329900538,5.67919524,85.149,85.108,5.47650809]
[1771329900731,5.67919524,85.139,85.108,5.47650809]
[1771329901139,5.67919524,85.139,85.096,5.47650809]
[1771329902039,5.67919524,85.137,85.103,10.5812]
[1771329903032,5.67919524,85.137,85.109,10.5804]
[1771329903234,3.61165544,85.14,85.11,5.47650809]
[1771329903434,5.67919524,85.148,85.11,5.47650809]
[1771329903644,8.7050158,85.147,85.11,5.47650809]
[1771329903845,5.67919524,85.148,85.11,5.47650809]
[1771329904046,8.7050158,85.147,85.11,5.47650809]
[1771329904244,10.5757,85.147,85.111,16.05670809]
[1771329904443,16.25489524,85.147,85.111,5.47650809]
[1771329904637,5.67919524,85.146,85.111,5.47650809]
[1771329905037,5.67919524,85.139,85.091,5.47650809]
[1771329905548,5.67919524,85.129,85.095,10.5821]
[1771329905943,5.67919524,85.129,85.095,16.05860809]
[1771329906138,5.67919524,85.129,85.098,10.5817]
[1771329907050,9.29085068,85.14,85.1,16.05800809]
[1771329907238,5.67919524,85.139,85.1,16.05800809]
[1771329907648,5.67919524,85.139,85.101,5.47650809]
[1771329908750,16.25599524,85.139,85.101,5.47650809]
[1771329909649,16.25599524,85.139,85.102,10.5813]
[1771329910043,16.25599524,85.139,85.101,5.47650809]
[1771329910245,10.5771,85.136,85.101,5.47650809]
[1771329911251,16.25629524,85.136,85.101,5.47650809]
[1771329911952,5.67919524,85.136,85.101,16.05790809]
[1771329914353,10.5772,85.135,85.101,16.05790809]
[1771329914550,15.95607391,85.135,85.101,16.05790809]
[1771329915049,3.61165544,85.13,85.095,10.5822]
[1771329915253,5.37887391,85.129,85.095,10.5822]
[1771329915652,5.37887391,85.119,85.086,10.5833]
[1771329918857,5.37887391,85.119,85.088,10.583]
[1771329919060,10.578,85.129,85.089,5.35994386]
[1771329920659,10.578,85.129,85.09,10.5828]
[1771329921262,5.37887391,85.128,85.089,5.35994386]
[1771329922864,5.37887391,85.128,85.096,10.582]
[1771329928062,5.37887391,85.128,85.101,10.5814]
[1771329928868,10.577,85.137,85.105,5.35994386]
[1771329929166,5.37887391,85.141,85.105,5.35994386]
[1771329929563,74.02,85.165,85.067,74.02]
[1771329929564,10.576,85.145,85.107,5.35994386]
[1771329930569,5.37887391,85.153,85.112,5.35994386]
[1771329931765,15.95387391,85.153,85.116,5.35994386]
[1771329932466,10.5747,85.156,85.116,5.35994386]
[1771329933166,10.5747,85.156,85.12,5.35994386]
[1771329934168,3.61165544,85.16,85.122,5.35994386]
[1771329934369,5.37887391,85.164,85.122,5.35994386]
[1771329935762,10.5735,85.166,85.125,5.35994386]
[1771329936670,10.5723,85.175,85.136,5.35994386]
[1771329937278,10.573,85.169,85.136,5.35994386]
[1771329938473,10.5722,85.176,85.136,5.35994386]
[1771329938970,10.5722,85.176,85.1,74.0]
[1771329938971,10.5694,85.198,85.139,5.35994386]
[1771329939184,10.5694,85.198,85.141,5.35994386]
[1771329940277,10.5683,85.208,85.164,5.35994386]
[1771329941781,10.5683,85.208,85.166,5.35994386]
[1771329942081,10.5683,85.208,85.165,10.5734]
[1771329942082,5.37887391,85.199,85.141,5.35994386]
[1771329942288,5.37887391,85.189,85.149,10.5754]
[1771329944279,5.61164299,85.179,85.141,5.35994386]
[1771329944879,3.61165544,85.19,85.141,5.35994386]
[1771329945282,10.5705,85.189,85.149,10.5754]
[1771329945682,10.5705,85.189,85.15,5.85674507]
[1771329946077,5.61164299,85.192,85.15,5.85674507]
[1771329946385,5.61164299,85.189,85.15,5.85674507]
[1771329946783,5.61164299,85.189,85.152,16.43184507]
[1771329947087,5.61164299,85.189,85.131,5.85674507]
[1771329947488,5.61164299,85.189,85.15,10.5753]
[1771329948689,10.5707,85.188,85.15,10.5753]
[1771329949490,5.61164299,85.189,85.117,21.1588]
[1771329949491,5.61164299,85.189,85.152,10.5751]
[1771329949686,5.61164299,85.189,85.152,16.43184507]
[1771329949887,3.60908947,85.2,85.153,5.85674507]
[1771329950784,10.5696,85.197,85.156,5.85674507]
[1771329951186,5.61164299,85.202,85.156,5.85674507]
[1771329951386,5.61164299,85.202,85.166,5.46752156]
[1771329952292,5.84069429,85.199,85.16,5.46752156]
[1771329952893,10.5703,85.191,85.16,5.46752156]
[1771329954388,3.60908947,85.2,85.166,5.46752156]
[1771329954580,3.60908947,85.21,85.166,5.46752156]
[1771329954787,9.44978376,85.21,85.166,5.46752156]
[1771329954992,5.84069429,85.209,85.166,5.46752156]
[1771329955794,10.5686,85.205,85.167,10.5731]
[1771329956591,3.60908947,85.2,85.167,10.5731]
[1771329958890,14.17828947,85.2,85.166,5.46752156]
[1771329959395,3.60908947,85.2,85.166,5.46752156]
[1771329960600,3.60908947,85.2,85.168,5.46752156]
[1771329962090,5.84069429,85.189,85.153,10.5749]
[1771329962292,5.84069429,85.185,85.142,5.46752156]
[1771329962484,9.44978376,85.18,85.142,5.46752156]
[1771329962696,5.84069429,85.179,85.142,5.46752156]
[1771329962897,5.84069429,85.179,85.138,10.5768]
[1771329963391,5.84069429,85.179,85.138,16.04432156]
[1771329963789,10.5719,85.178,85.138,16.04432156]
[1771329964089,5.84069429,85.179,85.138,16.04432156]
[1771329965097,5.84069429,85.179,85.144,10.576]
[1771329969494,5.84069429,85.179,85.144,16.04352156]
[1771329969701,10.5711,85.185,85.148,5.46752156]
[1771329973304,10.5711,85.185,85.151,5.46752156]
[1771329973798,10.5712,85.184,85.151,5.46752156]
[1771329974500,16.11227382,85.184,85.151,5.46752156]
[1771329974898,3.60908947,85.18,85.154,10.5748]
[1771329975798,3.60908947,85.18,85.115,21.1594]
[1771329975799,3.60908947,85.18,85.143,5.62461182]
[1771329976200,3.60908947,85.18,85.144,10.576]
[1771329976707,3.60908947,85.18,85.144,16.20061182]
[1771329977501,3.60908947,85.18,85.145,5.62461182]
[1771329977709,14.18068947,85.18,85.145,5.62461182]
[1771329978409,14.18068947,85.18,85.13,3.60908947]
[1771329978410,14.18068947,85.18,85.147,16.20031182]
[1771329978904,14.18068947,85.18,85.148,5.62461182]
[1771329979103,5.54107382,85.204,85.151,5.62461182]
[1771329979301,5.54107382,85.189,85.14,5.62461182]
[1771329979505,5.54107382,85.189,85.07,29.07794116]
[1771329979506,3.60908947,85.16,85.116,5.62461182]
[1771329979703,3.60908947,85.14,85.091,5.62461182]
[1771329980302,5.54107382,85.176,85.131,5.62461182]
[1771329980500,14.62150678,85.232,85.131,5.62461182]
[1771329980501,5.54107382,85.169,85.131,5.62461182]
[1771329980813,5.54107382,85.179,85.131,5.62461182]
[1771329981705,10.572,85.177,85.132,10.5776]
[1771329981904,10.572,85.177,85.133,5.62461182]
[1771329982104,5.54107382,85.179,85.133,5.62461182]
[1771329983110,10.5736,85.165,85.133,5.62461182]
[1771329984914,3.60908947,85.16,85.122,5.62461182]
[1771329985113,5.54107382,85.159,85.117,10.5794]
[1771329985506,3.60908947,85.15,85.111,5.62461182]
[1771329986208,5.54107382,85.159,85.111,5.62461182]
[1771329986406,5.54107382,85.149,85.091,5.62461182]
[1771329987415,5.54107382,85.149,85.082,73.98]
[1771329987416,5.54107382,85.149,85.115,10.5796]
[1771329990009,5.54107382,85.165,85.123,5.62461182]
[1771329990214,3.60908947,85.16,85.123,5.62461182]
[1771329991411,5.54107382,85.165,85.123,5.62461182]
[1771329991814,10.5739,85.163,85.125,5.62461182]
[1771329992811,5.54107382,85.165,85.127,5.62461182]
[1771329994426,5.54107382,85.165,85.127,16.20281182]
[1771329994923,5.54107382,85.165,85.128,5.62461182]
[1771329996428,16.11467382,85.165,85.128,5.62461182]
[1771329999623,10.5738,85.163,85.128,5.62461182]
[1771330002232,16.11487382,85.163,85.128,5.62461182]
[1771330006231,5.62037216,85.162,85.128,5.62461182]
[1771330006623,16.19447216,85.16,85.128,5.62461182]
[1771330006934,5.62037216,85.159,85.121,10.5789]
[1771330009135,5.62037216,85.159,85.121,16.3116307]
[1771330009934,5.62037216,85.159,85.124,10.5785]
[1771330010136,5.62037216,85.159,85.122,5.7327307]
[1771330011832,5.62037216,85.159,85.134,10.5772]
[1771330014339,5.88989304,85.171,85.131,5.50581088]
[1771330014528,5.88989304,85.169,85.131,5.50581088]
[1771330015742,5.88989304,85.167,85.134,10.5773]
[1771330017140,16.46369304,85.163,85.126,10.5783]
[1771330017335,16.46369304,85.163,85.127,5.50581088]
[1771330017741,5.88989304,85.162,85.127,5.50581088]
[1771330018933,5.88989304,85.162,85.128,10.578]
[1771330019129,5.88989304,85.159,85.128,10.578]
[1771330019335,5.88989304,85.159,85.111,5.50581088]
[1771330020643,5.88989304,85.159,85.123,5.50581088]
[1771330021742,5.88989304,85.159,85.126,10.5783]
[1771330024248,5.88989304,85.159,85.123,5.50581088]
[1771330024249,5.88989304,85.159,85.128,16.08381088]
[1771330025143,5.88989304,85.195,85.156,5.50581088]
[1771330025447,5.88989304,85.193,85.156,5.50581088]
[1771330026240,5.88989304,85.219,85.178,5.50581088]
[1771330026446,5.88989304,85.209,85.166,5.50581088]
[1771330027642,5.88989304,85.209,85.169,5.50581088]
[1771330027843,9.50152849,85.22,85.169,5.50581088]
[1771330028052,73.98,85.241,85.169,5.50581088]
[1771330028053,3.61163545,85.21,85.169,5.50581088]
[1771330029443,10.97531289,85.275,85.2,3.61163545]
[1771330029642,3.61163545,85.25,85.165,175.51243962]
[1771330029843,3.61163545,85.23,85.19,5.50581088]
[1771330030045,5.88989304,85.239,85.19,5.50581088]
[1771330030046,5.88989304,85.239,85.19,3.61163545]
[1771330030244,5.88989304,85.239,85.193,5.50581088]
[1771330030442,3.61163545,85.25,85.2,3.61163545]
[1771330030647,5.88989304,85.252,85.201,5.50581088]
[1771330031149,5.88989304,85.265,85.213,10.5674]
[1771330031348,73.96,85.27,85.21,3.61163545]
[1771330031349,5.88989304,85.268,85.221,5.50581088]
[1771330031551,3.61163545,85.26,85.221,5.50581088]
[1771330031750,5.88989304,85.259,85.221,5.50581088]
[1771330033651,9.50152849,85.27,85.221,5.50581088]
[1771330033851,5.88989304,85.269,85.221,5.50581088]
[1771330034856,5.88989304,85.269,85.223,5.72759341]
[1771330036458,5.88989304,85.269,85.225,5.72759341]
[1771330038746,3.61163545,85.28,85.231,5.72759341]
[1771330038947,5.83385407,85.283,85.231,5.72759341]
[1771330039147,164.1393,85.341,85.231,5.72759341]
[1771330039148,5.83385407,85.279,85.231,5.72759341]
[1771330039749,3.61163545,85.27,85.231,5.72759341]